bitfinex/quotes_SOLUSD_20240821
["timestamp","ask_amount","ask_price","bid_price","bid_amount"]
[1724232280499,13.44,141.57,141.53,15.0543]
[1724232287199,20.0,141.56,141.53,15.0543]
[1724232287502,20.0,141.6,141.53,15.0543]
[1724232287796,13.44,141.57,141.53,15.0543]
[1724232287998,20.0,141.56,141.53,15.0543]
[1724232289901,20.0,141.56,141.51,6.2819]
[1724232289902,13.44,141.55,141.51,6.2819]
[1724232290099,13.44,141.55,141.5,16.0579]
[1724232290395,20.0,141.54,141.5,16.0579]
[1724232291323,13.44,141.54,141.5,16.0579]
[1724232292417,13.44,141.52,141.48,6.5557]
[1724232294026,13.44,141.52,141.46,15.1247]
[1724232294331,13.44,141.52,141.46,16.53837395]
[1724232295224,7.34945842,141.56,141.46,16.53837395]
[1724232295524,13.44,141.53,141.46,15.1247]
[1724232295822,20.0,141.52,141.46,15.1247]
[1724232296213,13.44,141.53,141.46,15.1247]
[1724232296414,20.0,141.52,141.46,15.1247]
[1724232296721,20.0,141.52,141.47,1.41344541]
[1724232300411,20.0,141.52,141.46,15.1247]
[1724232303337,13.44,141.53,141.47,1.41343659]
[1724232304334,7.34945842,141.56,141.47,45.0]
[1724232304538,6.5666,141.58,141.47,45.0]
[1724232304719,13.93210702,141.58,141.47,45.0]
[1724232305120,13.44,141.55,141.47,45.0]
[1724232305528,13.44,141.56,141.48,6.423]
[1724232305713,13.44,141.56,141.49,15.8163]
[1724232307325,20.0,141.55,141.49,15.8163]
[1724232308827,13.44,141.56,141.49,15.8163]
[1724232309014,13.44,141.58,141.5,1.41312594]
[1724232309216,13.44,141.58,141.5,46.41312594]
[1724232310039,13.44,141.58,141.51,22.3943]
[1724232310252,13.44,141.58,141.52,1.41288914]
[1724232310920,13.44,141.6,141.52,1.41288914]
[1724232312140,13.44,141.58,141.52,1.41288914]
[1724232313816,13.44,141.58,141.51,22.3943]
[1724232314317,13.44,141.58,141.52,1.41297554]
[1724232314945,13.44,141.56,141.51,22.3943]
[1724232315441,20.0,141.59,141.51,22.3943]
[1724232315643,0.25098,141.58,141.51,16.1155]
[1724232315832,65.25098,141.58,141.51,16.1155]
[1724232316246,13.44,141.53,141.51,16.1155]
[1724232319426,13.44,141.55,141.51,16.1155]
[1724232319733,20.0,141.54,141.51,16.1155]
[1724232320630,13.44,141.55,141.51,16.1155]
[1724232323242,28.62722633,141.6,141.51,16.1155]
[1724232323243,13.44,141.58,141.52,7.8058086]
[1724232324155,13.44,141.58,141.52,6.3926]
[1724232324550,13.44,141.6,141.52,6.3926]
[1724232324946,13.44,141.6,141.53,1.4127643]
[1724232325259,13.44,141.6,141.54,1.41276024]
[1724232325850,13.44,141.58,141.52,6.3926]
[1724232326551,13.44,141.58,141.52,7.80570221]
[1724232326738,7.34969479,141.62,141.52,6.3926]
[1724232326936,13.44,141.58,141.52,6.3926]
[1724232329551,45.25098,141.61,141.52,6.3926]
[1724232329848,33.44,141.6,141.52,6.3926]
[1724232330839,33.44,141.6,141.53,1.41276798]
[1724232331163,33.44,141.6,141.52,6.3926]
[1724232332243,13.44,141.58,141.52,6.3926]
[1724232332471,13.44,141.58,141.52,7.80552252]
[1724232332764,13.44,141.59,141.52,6.3926]
[1724232335465,13.44,141.59,141.53,1.41288088]
[1724232335640,13.44,141.59,141.52,6.3926]
[1724232336343,13.44,141.59,141.52,7.80547371]
[1724232336762,13.44,141.57,141.52,6.3926]
[1724232337139,13.44,141.53,141.51,16.1155]
[1724232338348,13.44,141.53,141.48,21.4052]
[1724232338538,13.44,141.5,141.48,21.4052]
[1724232338955,13.44,141.5,141.48,15.4014]
[1724232342743,0.12549,141.54,141.48,15.4014]
[1724232342949,13.44,141.51,141.48,15.4014]
[1724232346462,13.44,141.53,141.48,15.4014]
[1724232347742,13.69098,141.55,141.48,15.4014]
[1724232347944,20.0,141.54,141.48,15.4014]
[1724232348445,20.0,141.54,141.49,1.41338376]
[1724232349062,20.0,141.54,141.48,15.4014]
[1724232349745,20.0,141.54,141.48,16.81472611]
[1724232349941,20.0,141.54,141.48,15.4014]
[1724232352379,20.0,141.54,141.48,16.81476521]
[1724232352686,13.44,141.55,141.48,16.81476521]
[1724232352853,13.44,141.55,141.49,1.41336297]
[1724232353373,13.44,141.57,141.49,6.3903]
[1724232354049,20.0,141.56,141.49,6.3903]
[1724232354873,13.44,141.59,141.51,16.1676]
[1724232355363,13.44,141.59,141.52,1.4129788]
[1724232356174,20.0,141.58,141.51,16.1676]
[1724232356477,20.0,141.58,141.52,1.4129741]
[1724232356874,7.34941863,141.62,141.52,1.4129741]
[1724232356875,13.44,141.61,141.52,1.4129741]
[1724232357577,13.44,141.61,141.51,29.6076]
[1724232358176,20.0,141.6,141.51,29.6076]
[1724232358356,20.0,141.6,141.52,1.41282377]
[1724232360454,20.0,141.6,141.53,7.6850865]
[1724232360678,20.0,141.6,141.53,6.2723]
[1724232360875,13.44,141.61,141.53,6.2723]
[1724232361559,13.44,141.61,141.54,1.41272424]
[1724232361988,13.44,141.61,141.53,6.2723]
[1724232364173,7.47490863,141.62,141.54,15.2934]
[1724232364494,33.44,141.61,141.54,15.2934]
[1724232365074,20.0,141.61,141.54,15.2934]
[1724232365257,33.44,141.61,141.54,15.2934]
[1724232370501,20.0,141.61,141.54,15.2934]
[1724232372594,13.44,141.62,141.54,15.2934]
[1724232373378,13.44,141.6,141.54,15.2934]
[1724232374105,13.44,141.56,141.51,15.8827]
[1724232374305,13.44,141.54,141.51,15.8827]
[1724232380801,13.44,141.52,141.48,15.7396]
[1724232382607,13.44,141.5,141.48,15.7396]
[1724232382888,13.44,141.5,141.44,21.3292]
[1724232383110,0.12549,141.53,141.44,21.3292]
[1724232383298,0.12549,141.54,141.44,21.3292]
[1724232383505,45.25098,141.54,141.44,21.3292]
[1724232383720,20.0,141.53,141.44,21.3292]
[1724232383910,0.12549,141.52,141.44,21.3292]
[1724232384097,13.44,141.5,141.44,21.3292]
[1724232386298,20.0,141.49,141.44,21.3292]
[1724232390319,13.44,141.5,141.44,21.3292]
[1724232390497,20.0,141.49,141.44,21.3292]
[1724232397617,13.44,141.48,141.44,15.0092]
[1724232398020,0.12549,141.47,141.44,15.0092]
[1724232398327,0.12549,141.47,141.41,21.7827]
[1724232398726,13.44,141.45,141.41,21.7827]
[1724232401445,58.69098,141.47,141.41,21.7827]
[1724232401611,20.0,141.46,141.41,21.7827]
[1724232405713,20.0,141.48,141.41,21.7827]
[1724232407202,58.69098,141.47,141.41,21.7827]
[1724232407405,20.0,141.46,141.41,21.7827]
[1724232407602,13.56549,141.47,141.41,21.7827]
[1724232407924,20.0,141.46,141.41,21.7827]
[1724232409007,13.44,141.47,141.41,21.7827]
[1724232409215,7.34686622,141.5,141.41,35.2227]
[1724232409418,16.0581,141.52,141.41,35.2227]
[1724232409738,13.44,141.5,141.41,35.2227]
[1724232411732,13.44,141.52,141.44,15.3333]
[1724232412940,13.44,141.52,141.45,6.4453]
[1724232413131,20.0,141.51,141.45,6.4453]
[1724232418518,7.34491174,141.55,141.45,19.8853]
[1724232418730,7.34491174,141.55,141.46,15.9312]
[1724232418731,20.0,141.54,141.46,15.9312]
[1724232419911,20.0,141.54,141.47,1.41342345]
[1724232420312,20.0,141.54,141.46,15.9312]
[1724232421243,13.44,141.53,141.46,15.9312]
[1724232423027,20.12549,141.54,141.46,15.9312]
[1724232423231,33.56549,141.53,141.46,15.9312]
[1724232423444,13.56549,141.53,141.46,15.9312]
[1724232425239,13.44,141.53,141.46,15.9312]
[1724232428354,13.44,141.51,141.46,15.9312]
[1724232429330,7.50740082,141.54,141.46,15.9312]
[1724232429548,33.44,141.53,141.46,15.9312]
[1724232435732,20.0,141.53,141.46,15.9312]
[1724232435948,33.44,141.53,141.46,15.9312]
[1724232436732,33.44,141.53,141.47,1.4134855]
[1724232437553,33.44,141.53,141.46,15.9312]
[1724232439564,33.44,141.53,141.47,1.41348767]
[1724232439855,33.44,141.53,141.48,1.41348717]
[1724232440038,20.0,141.53,141.46,15.9312]
[1724232440246,20.0,141.54,141.46,15.9312]
[1724232440644,20.0,141.54,141.47,1.4133788]
[1724232441839,20.0,141.54,141.46,15.9312]
[1724232444846,20.0,141.54,141.49,15.8627]
[1724232446945,7.37957202,141.57,141.5,1.41327785]
[1724232447151,13.44,141.59,141.51,6.5489]
[1724232447858,13.44,141.59,141.53,15.3968]
[1724232448653,20.0,141.58,141.53,15.3968]
[1724232451953,13.44,141.57,141.53,15.3968]
[1724232454051,20.0,141.58,141.53,15.3968]
[1724232454251,13.44,141.58,141.53,15.3968]
[1724232455385,0.12549,141.59,141.53,15.3968]
[1724232455575,13.44,141.59,141.53,15.3968]
[1724232455788,20.0,141.58,141.53,15.3968]
[1724232456155,13.44,141.57,141.53,15.3968]
[1724232461772,33.44,141.58,141.53,15.3968]
[1724232461982,20.0,141.58,141.53,15.3968]
[1724232462165,13.44,141.58,141.53,15.3968]
[1724232463784,13.44,141.56,141.53,15.3968]
[1724232463976,13.44,141.56,141.51,6.5489]
[1724232464953,20.0,141.55,141.51,6.5489]
[1724232466055,13.44,141.54,141.51,6.5489]
[1724232466255,13.44,141.54,141.5,15.6372]
[1724232469673,20.0,141.53,141.5,15.6372]
[1724232475084,20.0,141.53,141.48,6.6282]
[1724232475085,13.56549,141.52,141.48,6.6282]
[1724232475294,13.44,141.5,141.48,6.6282]
[1724232475462,13.44,141.5,141.47,15.2117]
[1724232475992,13.44,141.5,141.44,6.0062]
[1724232476474,13.44,141.48,141.44,6.0062]
[1724232476677,45.25098,141.5,141.44,6.0062]
[1724232476880,13.44,141.48,141.44,6.0062]
[1724232477689,13.44,141.46,141.43,16.0645]
[1724232480390,45.12549,141.5,141.43,16.0645]
[1724232480572,33.56549,141.49,141.43,16.0645]
[1724232482664,45.0,141.48,141.43,16.0645]
[1724232482879,13.44,141.47,141.43,16.0645]
[1724232483697,45.0,141.48,141.43,16.0645]
[1724232483895,20.0,141.47,141.43,16.0645]
[1724232484199,33.44,141.47,141.43,16.0645]
[1724232487577,20.0,141.47,141.43,16.0645]
[1724232489633,274.0805,141.58,141.44,19.5497]
[1724232489775,13.44,141.53,141.44,6.1097]
[1724232491099,20.0,141.52,141.44,6.1097]
[1724232491289,13.44,141.51,141.44,6.1097]
[1724232491478,20.0,141.5,141.44,6.1097]
[1724232495208,13.44,141.53,141.44,6.1097]
[1724232495384,65.12549,141.52,141.44,7.52340344]
[1724232495587,65.12549,141.52,141.44,6.1097]
[1724232495810,13.44,141.47,141.44,6.1097]
[1724232496100,13.44,141.47,141.43,16.0645]
[1724232501302,0.12549,141.48,141.43,16.0645]
[1724232501504,65.12549,141.48,141.43,16.0645]
[1724232504209,13.44,141.47,141.43,16.0645]
[1724232507520,20.0,141.48,141.43,16.0645]
[1724232507724,13.44,141.52,141.44,6.3]
[1724232508990,20.0,141.51,141.44,6.3]
[1724232511791,20.0,141.51,141.44,7.71369601]
[1724232512314,20.0,141.51,141.45,16.0501]
[1724232512492,20.0,141.53,141.45,16.0501]
[1724232512694,20.0,141.53,141.45,17.4637101]
[1724232514212,20.0,141.53,141.46,1.4135826]
[1724232514527,20.0,141.53,141.45,16.0501]
[1724232515314,20.0,141.53,141.45,17.46370145]
[1724232516017,20.0,141.53,141.45,16.0501]
[1724232516219,7.38101753,141.54,141.47,16.1782]
[1724232516428,13.44,141.56,141.47,17.59159786]
[1724232517533,0.12549,141.55,141.47,17.59159786]
[1724232517829,45.12549,141.55,141.47,16.1782]
[1724232518015,20.0,141.54,141.47,16.1782]
[1724232519211,13.44,141.52,141.47,16.1782]
[1724232535840,13.44,141.5,141.47,16.1782]
[1724232536244,13.44,141.48,141.43,22.6761]
[1724232536542,65.25098,141.49,141.43,22.6761]
[1724232536746,13.44,141.46,141.43,22.6761]
[1724232539745,13.44,141.47,141.43,22.6761]
[1724232539943,40.81470915,141.49,141.43,22.6761]
[1724232540139,33.44,141.49,141.43,22.6761]
[1724232544053,13.44,141.47,141.43,22.6761]
[1724232548752,13.44,141.45,141.43,22.6761]
[1724232549131,0.12549,141.48,141.43,22.6761]
[1724232549447,13.56549,141.48,141.43,22.6761]
[1724232549688,13.44,141.46,141.43,22.6761]
[1724232549845,20.0,141.45,141.43,22.6761]
[1724232550348,20.0,141.45,141.43,16.6135]
[1724232551066,13.44,141.44,141.39,21.8935]
[1724232551239,20.0,141.43,141.39,21.8935]
[1724232558885,20.0,141.45,141.39,21.8935]
[1724232564080,20.0,141.47,141.39,21.8935]
[1724232565179,13.44,141.46,141.39,21.8935]
[1724232565490,20.0,141.47,141.39,21.8935]
[1724232565491,13.44,141.44,141.39,21.8935]
[1724232570802,20.0,141.47,141.39,21.8935]
[1724232571006,13.44,141.45,141.39,21.8935]
[1724232571193,65.0,141.44,141.39,21.8935]
[1724232572418,45.0,141.44,141.39,21.8935]
[1724232572778,13.44,141.45,141.39,21.8935]
[1724232572979,20.0,141.44,141.39,21.8935]
[1724232576590,20.0,141.44,141.39,25.43218472]
[1724232576789,20.0,141.44,141.39,21.8935]
[1724232577618,20.0,141.44,141.39,26.84652569]
[1724232577783,20.0,141.44,141.39,21.8935]
[1724232584409,7.33630814,141.48,141.39,21.8935]
[1724232584621,7.33630814,141.48,141.42,6.1303]
[1724232584917,6.51054677,141.53,141.43,15.9288]
[1724232585216,7.33852171,141.51,141.44,1.41379175]
[1724232585717,7.33852171,141.51,141.43,15.9288]
[1724232586019,20.77852171,141.51,141.43,15.9288]
[1724232586186,20.0,141.5,141.43,15.9288]
[1724232589994,13.44,141.49,141.43,15.9288]
[1724232594502,13.44,141.49,141.43,17.34267218]
[1724232594704,13.44,141.49,141.43,15.9288]
[1724232598300,13.44,141.47,141.43,15.9288]
[1724232599517,45.0,141.48,141.43,15.9288]
[1724232599736,13.44,141.48,141.43,15.9288]
[1724232601902,65.0,141.47,141.43,15.9288]
[1724232602120,13.44,141.45,141.43,15.9288]
[1724232604541,45.0,141.47,141.43,15.9288]
[1724232604834,20.0,141.46,141.43,15.9288]
[1724232606231,45.0,141.45,141.43,15.9288]
[1724232606932,45.0,141.45,141.38,3.53872841]
[1724232606933,58.44,141.45,141.39,22.1889]
[1724232609720,13.44,141.43,141.39,22.1889]
[1724232612749,13.44,141.41,141.37,19.80580316]
[1724232612918,13.44,141.41,141.37,16.2669]
[1724232613115,45.0,141.4,141.37,16.2669]
[1724232613719,13.44,141.39,141.36,6.3379]
[1724232613922,13.44,141.39,141.34,15.3906]
[1724232614336,13.44,141.37,141.34,15.3906]
[1724232614548,13.44,141.37,141.26,22.9783]
[1724232614749,13.44,141.35,141.26,36.4183]
[1724232614944,13.44,141.35,141.27,16.2345]
[1724232616148,65.12549,141.36,141.27,16.2345]
[1724232616344,78.56549,141.36,141.28,1.41530026]
[1724232617048,20.0,141.36,141.27,49.6745]
[1724232617274,13.44,141.37,141.29,6.3608]
[1724232617459,20.0,141.36,141.3,15.2004]
[1724232617753,13.44,141.35,141.3,15.2004]
[1724232619846,20.0,141.36,141.3,15.2004]
[1724232620050,20.0,141.36,141.3,16.6156055]
[1724232620226,20.0,141.36,141.3,15.2004]
[1724232622834,20.0,141.36,141.3,28.6404]
[1724232623032,13.44,141.36,141.3,15.2004]
[1724232623237,13.44,141.32,141.3,15.2004]
[1724232623750,13.44,141.34,141.3,15.2004]
[1724232624150,20.0,141.33,141.3,15.2004]
[1724232626366,13.44,141.32,141.27,15.603]
[1724232630980,20.0,141.33,141.27,15.603]
[1724232631275,20.0,141.34,141.28,1.41541232]
[1724232631457,6.3887,141.38,141.27,15.603]
[1724232631661,20.77862393,141.39,141.27,15.603]
[1724232631971,20.77862393,141.39,141.28,1.41524985]
[1724232632157,20.77862393,141.39,141.27,15.603]
[1724232632561,0.12549,141.38,141.27,15.603]
[1724232632878,13.44,141.35,141.27,15.603]
[1724232633050,20.0,141.34,141.27,15.603]
[1724232638163,13.44,141.33,141.27,15.603]
[1724232639883,13.44,141.31,141.27,15.603]
[1724232640257,13.44,141.33,141.27,15.603]
[1724232640454,20.0,141.32,141.27,15.603]
[1724232641282,20.0,141.34,141.27,15.603]
[1724232641888,13.44,141.33,141.27,15.603]
[1724232642187,20.0,141.32,141.27,15.603]
[1724232642708,13.56549,141.35,141.28,1.41541432]
[1724232642876,13.44,141.35,141.28,1.41541432]
[1724232643102,20.0,141.34,141.28,1.41541432]
[1724232643257,20.0,141.34,141.29,6.1115]
[1724232643456,20.0,141.34,141.3,1.41527225]
[1724232643658,7.33587789,141.37,141.3,1.41527225]
[1724232643854,7.33587789,141.37,141.31,15.6975]
[1724232644173,3.43828016,141.4,141.31,15.6975]
[1724232644174,13.44,141.39,141.31,15.6975]
[1724232645271,13.44,141.37,141.31,15.6975]
[1724232645467,13.44,141.35,141.31,15.6975]
[1724232646585,13.44,141.37,141.31,15.6975]
[1724232646883,20.0,141.36,141.31,15.6975]
[1724232647385,20.0,141.38,141.32,1.41489365]
[1724232647583,20.0,141.38,141.31,15.6975]
[1724232647886,20.0,141.38,141.32,1.4149103]
[1724232648089,20.0,141.38,141.33,1.4148367]
[1724232648394,20.0,141.38,141.31,15.6975]
[1724232648873,13.44,141.39,141.31,15.6975]
[1724232649082,20.0,141.38,141.31,15.6975]
[1724232649961,20.0,141.38,141.32,21.27220286]
[1724232650160,20.0,141.4,141.33,1.41469032]
[1724232650583,265.73340265,141.44,141.34,16.6436]
[1724232650796,20.77340265,141.44,141.36,6.4174]
[1724232650981,20.77340265,141.44,141.37,1.41442118]
[1724232651489,13.44,141.44,141.37,15.3924]
[1724232652668,20.0,141.43,141.37,15.3924]
[1724232656070,13.44,141.42,141.37,15.3924]
[1724232657981,20.0,141.43,141.37,15.3924]
[1724232658667,13.44,141.44,141.37,15.3924]
[1724232658869,13.44,141.46,141.38,14.85432314]
[1724232659096,13.44,141.48,141.4,22.1761]
[1724232659292,13.44,141.48,141.41,1.41404307]
[1724232660779,13.44,141.48,141.4,22.1761]
[1724232661199,20.0,141.47,141.41,1.41404341]
[1724232661378,20.0,141.47,141.4,22.1761]
[1724232661574,13.44,141.46,141.4,22.1761]
[1724232661881,13.44,141.44,141.4,22.1761]
[1724232663697,13.44,141.42,141.4,22.1761]
[1724232664176,13.44,141.42,141.4,15.9246]
[1724232665174,13.44,141.42,141.37,21.3287]
[1724232665372,13.44,141.4,141.37,21.3287]
[1724232665698,13.44,141.38,141.37,15.1121]
[1724232665896,13.44,141.38,141.33,6.4237]
[1724232665897,13.44,141.38,141.34,15.5371]
[1724232667485,13.44,141.38,141.35,0.12549]
[1724232668013,13.44,141.38,141.34,15.5371]
[1724232668508,33.68,141.39,141.34,15.5371]
[1724232669510,20.0,141.38,141.34,15.5371]
[1724232669841,33.68,141.35,141.3,15.8112]
[1724232671214,33.68,141.37,141.3,15.8112]
[1724232671392,20.0,141.36,141.3,15.8112]
[1724232672007,15.5797,141.41,141.3,15.8112]
[1724232672008,20.0,141.4,141.3,15.8112]
[1724232672202,78.68,141.39,141.3,15.8112]
[1724232672410,20.0,141.38,141.3,15.8112]
[1724232672617,20.0,141.38,141.31,0.25098]
[1724232672917,20.0,141.38,141.31,1.66597792]
[1724232673292,20.0,141.38,141.31,0.25098]
[1724232675107,78.68,141.37,141.31,0.12549]
[1724232675309,33.68,141.37,141.31,0.12549]
[1724232675495,33.68,141.37,141.31,0.25098]
[1724232675998,33.68,141.37,141.3,15.8112]
[1724232676707,33.68,141.35,141.3,15.8112]
[1724232676911,20.0,141.34,141.3,15.8112]
[1724232677611,45.0,141.36,141.3,15.8112]
[1724232677612,20.0,141.35,141.3,15.8112]
[1724232677918,45.0,141.34,141.3,15.8112]
[1724232678221,53.68,141.33,141.3,15.8112]
[1724232680719,53.68,141.33,141.29,6.3661]
[1724232681418,53.68,141.33,141.27,16.0867]
[1724232681722,45.0,141.32,141.27,16.0867]
[1724232682119,20.0,141.31,141.23,82.08506836]
[1724232682301,45.0,141.3,141.23,82.08506836]
[1724232682495,20.0,141.29,141.23,82.08506836]
[1724232682718,45.0,141.28,141.23,82.08506836]
[1724232683308,20.0,141.29,141.23,82.08506836]
[1724232683620,20.0,141.32,141.23,82.08506836]
[1724232683805,45.0,141.31,141.23,82.08506836]
[1724232684198,20.0,141.3,141.23,82.08506836]
[1724232684806,20.0,141.32,141.24,0.25098]
[1724232685514,20.0,141.32,141.24,0.12549]
[1724232685712,78.68,141.31,141.23,82.08506836]
[1724232685910,20.0,141.3,141.23,82.08506836]
[1724232686108,45.0,141.29,141.23,82.08506836]
[1724232686718,20.0,141.28,141.23,82.08506836]
[1724232686905,45.0,141.27,141.23,82.08506836]
[1724232687411,20.0,141.26,141.23,66.33076836]
[1724232688130,20.0,141.28,141.23,61.32077158]
[1724232688305,45.0,141.27,141.23,61.32077158]
[1724232688505,20.0,141.26,141.23,61.32077158]
[1724232689034,7.33622679,141.33,141.23,61.32077158]
[1724232689207,33.68,141.3,141.23,61.32077158]
[1724232689405,20.0,141.29,141.23,61.32077158]
[1724232690426,20.0,141.29,141.24,0.12549]
[1724232690612,20.0,141.29,141.23,61.32077158]
[1724232691406,45.0,141.28,141.23,61.32077158]
[1724232691718,20.0,141.27,141.23,61.32077158]
[1724232693914,20.0,141.29,141.23,61.32077158]
[1724232694147,20.0,141.29,141.24,0.12549]
[1724232694428,20.0,141.32,141.24,0.12549]
[1724232694636,7.33593851,141.32,141.25,16.1223]
[1724232694852,7.33593851,141.32,141.26,0.12549]
[1724232695130,41.01510444,141.34,141.26,0.12549]
[1724232695325,33.68,141.32,141.26,0.12549]
[1724232696240,20.0,141.31,141.26,0.12549]
[1724232696839,33.68,141.3,141.25,16.1223]
[1724232697143,45.0,141.29,141.25,16.1223]
[1724232697442,65.0,141.29,141.25,16.1223]
[1724232698244,20.0,141.29,141.25,16.1223]
[1724232698745,20.0,141.31,141.25,16.1223]
[1724232699821,45.0,141.3,141.25,16.1223]
[1724232700022,20.0,141.29,141.25,16.1223]
[1724232702946,45.0,141.3,141.25,16.1223]
[1724232703245,20.0,141.29,141.25,16.1223]
[1724232703448,20.0,141.3,141.25,16.1223]
[1724232704347,20.0,141.3,141.26,0.12549]
[1724232706439,20.0,141.31,141.26,0.12549]
[1724232709048,41.01510444,141.34,141.27,6.3068]
[1724232709271,6.87922898,141.38,141.28,0.12549]
[1724232709429,7.33406393,141.37,141.29,15.9706]
[1724232709640,7.33406393,141.37,141.3,0.25098]
[1724232709933,7.33626244,141.4,141.3,0.25098]
[1724232710452,7.33626244,141.4,141.3,1.66608097]
[1724232710453,33.68,141.39,141.3,1.66608097]
[1724232710943,20.0,141.38,141.3,1.66608097]
[1724232711155,45.0,141.37,141.3,1.66608097]
[1724232711449,20.0,141.36,141.3,1.66608097]
[1724232711639,7.33626244,141.4,141.32,15.2275]
[1724232711825,33.68,141.39,141.33,0.12549]
[1724232712926,33.68,141.39,141.32,15.2275]
[1724232713124,20.0,141.38,141.32,15.2275]
[1724232713849,45.0,141.37,141.32,15.2275]
[1724232714028,20.0,141.36,141.32,15.2275]
[1724232721457,78.68,141.35,141.32,15.2275]
[1724232721643,78.68,141.35,141.31,6.3002]
[1724232721964,78.68,141.35,141.29,16.3141]
[1724232723467,20.0,141.34,141.29,16.3141]
[1724232724337,33.68,141.33,141.29,16.3141]
[1724232724543,20.0,141.32,141.29,16.3141]
[1724232724848,20.0,141.32,141.25,21.3672]
[1724232725036,45.0,141.31,141.25,21.3672]
[1724232726967,20.0,141.32,141.25,21.3672]
[1724232727168,20.0,141.32,141.26,1.54103605]
[1724232727366,20.0,141.32,141.26,0.12549]
[1724232728075,22.40954822,141.37,141.26,0.12549]
[1724232728076,20.0,141.36,141.26,0.12549]
[1724232728269,45.0,141.35,141.26,0.12549]
[1724232728472,20.0,141.34,141.26,0.12549]
[1724232729677,33.68,141.33,141.26,0.12549]
[1724232729906,20.0,141.32,141.26,0.12549]
[1724232735876,20.0,141.32,141.26,1.54095292]
[1724232736062,20.0,141.34,141.26,1.54095292]
[1724232736976,20.0,141.34,141.27,15.2206]
[1724232737155,20.0,141.34,141.28,1.54080089]
[1724232737580,20.0,141.34,141.28,0.12549]
[1724232737777,20.0,141.36,141.28,0.12549]
[1724232741262,20.0,141.36,141.3,16.0081]
[1724232741708,33.68,141.39,141.31,0.12549]
[1724232743098,20.0,141.38,141.31,0.12549]
[1724232743999,20.0,141.38,141.31,1.54043925]
[1724232744171,20.0,141.38,141.31,0.12549]
[1724232744573,20.0,141.38,141.31,1.54038523]
[1724232744773,20.0,141.38,141.31,0.12549]
[1724232745996,20.0,141.38,141.32,21.7504]
[1724232746300,6.87922898,141.42,141.32,21.7504]
[1724232746301,20.0,141.4,141.33,0.25098]
[1724232746677,20.0,141.41,141.33,1.66563209]
[1724232746896,20.0,141.41,141.34,16.1729]
[1724232747079,20.0,141.42,141.35,0.12549]
[1724232747291,33.68,141.43,141.35,1.54005208]
[1724232747474,33.68,141.43,141.36,7.41829071]
[1724232747999,33.68,141.43,141.36,6.0038]
[1724232749801,20.0,141.42,141.36,6.0038]
[1724232751074,41.01063315,141.45,141.37,16.57699]
[1724232751278,41.01063315,141.45,141.37,17.99146899]
[1724232751279,45.0,141.44,141.37,17.99146899]
[1724232751787,20.0,141.43,141.37,17.99146899]
[1724232752484,33.68,141.45,141.37,17.99146899]
[1724232752485,20.0,141.44,141.37,16.57699]